bitfinex/quotes_SOLUSD_20230113
["timestamp","ask_amount","ask_price","bid_price","bid_amount"]
[1673642938757,20.0,17.148,17.137,17.0]
[1673642939187,29.9691928,17.147,17.137,17.0]
[1673642940127,20.0,17.148,17.137,17.0]
[1673642940339,29.9691928,17.151,17.137,17.0]
[1673642940538,20.0,17.15,17.138,20.0]
[1673642941188,29.9691928,17.152,17.138,20.0]
[1673642941407,20.0,17.151,17.138,20.0]
[1673642942765,29.9691928,17.154,17.138,20.0]
[1673642943164,20.0,17.153,17.139,17.0]
[1673642943376,20.0,17.153,17.14,20.0]
[1673642943793,30.97,17.17,17.14,50.97]
[1673642944003,20.0,17.165,17.14,50.97]
[1673642944223,49.9691928,17.165,17.14,50.97]
[1673642944530,29.9691928,17.164,17.14,50.97]
[1673642944742,29.9691928,17.164,17.141,115.7906]
[1673642945178,20.0,17.163,17.141,115.7906]
[1673642945492,46.9691928,17.162,17.141,115.7906]
[1673642945919,29.9691928,17.161,17.141,115.7906]
[1673642946550,29.9691928,17.161,17.142,20.0]
[1673642947169,29.9691928,17.161,17.144,20.0]
[1673642947498,29.9691928,17.161,17.146,20.0]
[1673642947713,20.0,17.16,17.146,20.0]
[1673642948644,20.0,17.165,17.146,20.0]
[1673642948842,29.9691928,17.162,17.146,20.0]
[1673642949053,20.0,17.161,17.146,20.0]
[1673642949476,20.0,17.161,17.147,17.0]
[1673642951070,49.9691928,17.161,17.145,117.4406]
[1673642951492,56.6816928,17.161,17.145,117.4406]
[1673642951705,37.0,17.16,17.145,117.4406]
[1673642952016,88.74950143,17.16,17.145,117.4406]
[1673642952230,49.9691928,17.159,17.145,117.4406]
[1673642952755,29.9691928,17.158,17.145,117.4406]
[1673642953363,29.9691928,17.158,17.146,17.0]
[1673642953799,29.9691928,17.158,17.145,117.4406]
[1673642954011,20.0,17.157,17.145,117.4406]
[1673642954217,20.0,17.156,17.141,115.7906]
[1673642954438,20.0,17.155,17.141,115.7906]
[1673642954651,49.9691928,17.155,17.141,115.7906]
[1673642954961,59.9383856,17.154,17.141,115.7906]
[1673642955164,20.0,17.153,17.141,115.7906]
[1673642955574,49.9691928,17.153,17.141,115.7906]
[1673642956428,20.0,17.153,17.142,20.0]
[1673642956620,20.0,17.156,17.142,20.0]
[1673642956839,49.9691928,17.156,17.142,20.0]
[1673642957260,49.9691928,17.156,17.143,17.0]
[1673642957568,29.9691928,17.156,17.143,17.0]
[1673642957799,20.0,17.166,17.143,17.0]
[1673642958006,29.9691928,17.16,17.143,17.0]
[1673642958200,20.0,17.159,17.143,17.0]
[1673642958854,49.9691928,17.159,17.143,17.0]
[1673642959809,49.9691928,17.159,17.141,115.7906]
[1673642960314,49.9691928,17.159,17.142,17.0]
[1673642960509,20.0,17.158,17.142,17.0]
[1673642960954,29.9691928,17.158,17.142,17.0]
[1673642961380,29.9691928,17.158,17.143,20.0]
[1673642961705,20.0,17.159,17.143,20.0]
[1673642962019,29.9691928,17.161,17.143,20.0]
[1673642962329,20.0,17.16,17.143,20.0]
[1673642962942,20.0,17.168,17.144,20.38568393]
[1673642963157,20.0,17.169,17.145,115.6378]
[1673642963362,20.0,17.169,17.146,20.0]
[1673642964208,20.0,17.169,17.145,115.6378]
[1673642964209,20.0,17.168,17.145,115.6378]
[1673642964431,65.03700143,17.168,17.145,115.6378]
[1673642964628,20.0,17.167,17.145,115.6378]
[1673642965374,20.0,17.167,17.146,17.0]
[1673642967253,20.0,17.165,17.145,115.6378]
[1673642967469,125.527,17.164,17.145,115.6378]
[1673642967891,20.0,17.163,17.145,115.6378]
[1673642969045,20.0,17.163,17.146,17.0]
[1673642969374,20.0,17.163,17.145,115.6378]
[1673642969687,17.0,17.162,17.145,115.6378]
[1673642969912,20.0,17.161,17.145,115.6378]
[1673642970416,65.03700143,17.161,17.145,115.6378]
[1673642970946,20.0,17.16,17.145,115.6378]
[1673642971340,65.03700143,17.16,17.145,115.6378]
[1673642971554,20.0,17.159,17.145,115.6378]
[1673642973977,40.0,17.159,17.145,115.6378]
[1673642974309,20.0,17.159,17.145,115.6378]
[1673642975046,65.03700143,17.159,17.136,118.4804]
[1673642975252,20.0,17.158,17.136,118.4804]
[1673642975572,20.0,17.157,17.136,118.4804]
[1673642976395,20.0,17.157,17.137,17.0]
[1673642977041,20.0,17.157,17.138,20.0]
[1673642977245,20.0,17.158,17.137,20.0]
[1673642977438,40.0,17.158,17.137,20.0]
[1673642977648,20.0,17.158,17.137,20.0]
[1673642977868,17.0,17.157,17.136,118.4804]
[1673642978087,20.0,17.156,17.136,118.4804]
[1673642978715,110.3558,17.157,17.136,118.4804]
[1673642978908,45.03700143,17.163,17.14,46.15]
[1673642979129,20.0,17.162,17.141,20.0]
[1673642979336,20.0,17.162,17.142,17.0]
[1673642979549,45.03700143,17.163,17.142,17.0]
[1673642979762,110.3558,17.162,17.142,128.3616]
[1673642979978,110.3558,17.162,17.143,20.0]
[1673642980193,110.3558,17.162,17.142,111.3616]
[1673642980822,110.3558,17.162,17.143,17.0]
[1673642981038,110.3558,17.162,17.144,20.0]
[1673642981238,110.3558,17.162,17.145,112.8648]
[1673642982281,20.0,17.161,17.145,112.8648]
[1673642983227,20.0,17.161,17.146,20.0]
[1673642983557,20.0,17.161,17.145,112.8648]
[1673642983765,40.0,17.161,17.145,112.8648]
[1673642984264,20.0,17.161,17.145,112.8648]
[1673642985119,20.0,17.161,17.146,20.0]
[1673642985974,20.0,17.162,17.15,46.35]
[1673642986175,154.7705,17.169,17.15,46.35]
[1673642986687,134.7705,17.169,17.151,17.0]
[1673642987111,134.7705,17.169,17.152,20.0]
[1673642987855,114.7705,17.169,17.152,20.0]
[1673642988273,114.7705,17.169,17.151,20.0]
[1673642988595,114.7705,17.169,17.15,46.35]
[1673642990261,20.0,17.168,17.15,46.35]
[1673642990465,20.0,17.168,17.151,20.0]
[1673642991443,20.0,17.168,17.15,46.35]
[1673642992048,20.0,17.168,17.151,20.0]
[1673642996148,20.0,17.168,17.15,46.35]
[1673642996572,29.9691928,17.167,17.144,113.2563]
[1673642996909,20.0,17.166,17.144,113.2563]
[1673642997310,114.7705,17.169,17.144,113.2563]
[1673642997311,114.7705,17.169,17.15,46.35]
[1673642997520,20.0,17.168,17.15,46.35]
[1673642997935,20.0,17.168,17.151,17.0]
[1673642999197,49.9691928,17.168,17.151,17.0]
[1673642999639,20.0,17.168,17.151,17.0]
[1673643000878,20.0,17.167,17.145,112.8648]
[1673643001086,20.0,17.166,17.145,112.8648]
[1673643001299,29.9691928,17.167,17.145,112.8648]
[1673643001622,29.9691928,17.165,17.145,112.8648]
[1673643001939,37.0,17.164,17.145,112.8648]
[1673643002350,66.9691928,17.164,17.145,112.8648]
[1673643002558,49.9691928,17.164,17.145,112.8648]
[1673643002775,20.0,17.164,17.145,112.8648]
[1673643003103,6.72737,17.166,17.145,112.8648]
[1673643003104,20.0,17.165,17.147,20.0]
[1673643003321,20.0,17.165,17.146,20.0]
[1673643003511,20.0,17.165,17.148,17.0]
[1673643003724,20.0,17.165,17.146,20.0]
[1673643003933,20.0,17.165,17.147,17.0]
[1673643004463,20.0,17.165,17.148,17.0]
[1673643004672,20.0,17.165,17.146,20.0]
[1673643005315,114.7705,17.169,17.147,37.0]
[1673643005722,20.0,17.168,17.148,20.0]
[1673643005936,20.0,17.168,17.149,20.0]
[1673643006153,20.0,17.168,17.149,40.38568393]
[1673643006468,20.0,17.168,17.15,17.0]
[1673643007000,114.7705,17.169,17.15,17.0]
[1673643007197,114.7705,17.169,17.15,83.53568393]
[1673643007405,68.4416,17.172,17.15,83.53568393]
[1673643007627,68.4416,17.172,17.151,117.2568]
[1673643007841,68.4416,17.172,17.152,20.0]
[1673643008038,117.7299,17.174,17.152,40.38568393]
[1673643008247,20.0,17.173,17.153,20.38568393]
[1673643008668,117.7987,17.181,17.16,46.37]
[1673643008878,117.7987,17.181,17.161,37.0]
[1673643009317,117.7987,17.181,17.161,17.0]
[1673643009961,147.7678928,17.181,17.161,17.0]
[1673643010142,29.9691928,17.18,17.161,133.6537]
[1673643010352,20.0,17.179,17.162,20.0]
[1673643010777,20.0,17.18,17.163,111.3486]
[1673643011213,29.9691928,17.179,17.163,111.3486]
[1673643011425,20.0,17.178,17.163,111.3486]
[1673643011617,20.0,17.18,17.163,111.3486]
[1673643011832,20.0,17.18,17.164,20.0]
[1673643012975,20.0,17.183,17.164,20.0]
[1673643014884,20.0,17.183,17.165,17.0]
[1673643016781,20.0,17.183,17.166,20.0]
[1673643018351,20.0,17.183,17.167,17.0]
[1673643018790,90.2574,17.19,17.17,46.37]
[1673643019842,90.2574,17.19,17.171,37.0]
[1673643020249,111.1681,17.189,17.171,37.0]
[1673643020658,20.0,17.188,17.171,37.0]
[1673643020874,20.0,17.188,17.172,108.8644]
[1673643021294,20.0,17.188,17.173,20.0]
[1673643021623,20.0,17.188,17.173,37.0]
[1673643021829,20.0,17.188,17.173,17.0]
[1673643026150,20.0,17.188,17.172,108.8644]
[1673643026349,20.0,17.188,17.16,92.14410954]
[1673643026562,20.0,17.187,17.163,228.4642]
[1673643026777,20.0,17.186,17.163,228.4642]
[1673643027182,20.0,17.186,17.164,20.0]
[1673643027392,20.0,17.186,17.165,17.0]
[1673643028048,20.0,17.187,17.165,17.0]
[1673643028871,20.0,17.188,17.163,248.84988393]
[1673643029098,29.9691928,17.186,17.163,228.4642]
[1673643029287,20.0,17.185,17.163,228.4642]
[1673643029624,20.0,17.184,17.163,228.4642]
[1673643029832,20.0,17.183,17.163,228.4642]
[1673643030042,118.3131,17.182,17.163,111.3486]
[1673643030241,37.0,17.181,17.163,111.3486]
[1673643030454,66.9691928,17.181,17.163,111.3486]
[1673643030657,29.9691928,17.18,17.163,111.3486]
[1673643030990,20.0,17.179,17.163,111.3486]
[1673643031415,17.5,17.179,17.163,111.3486]
[1673643032471,17.5,17.179,17.164,20.0]
[1673643032658,118.3131,17.182,17.164,20.0]
[1673643033396,20.0,17.181,17.163,111.3486]
[1673643033605,40.0,17.181,17.163,111.3486]
[1673643033816,69.9691928,17.181,17.163,111.3486]
[1673643034029,29.9691928,17.18,17.163,111.3486]
[1673643034255,20.0,17.179,17.163,111.3486]
[1673643035290,20.0,17.181,17.163,131.73428393]
[1673643035491,20.0,17.181,17.164,20.0]
[1673643036121,16.5,17.181,17.164,20.0]
[1673643036760,16.5,17.181,17.163,111.3486]
[1673643036970,16.5,17.181,17.164,17.0]
[1673643037403,16.5,17.181,17.163,111.3486]
[1673643039404,16.5,17.181,17.164,20.0]
[1673643043400,16.5,17.181,17.164,39.96777448]
[1673643044055,16.5,17.181,17.164,20.0]
[1673643047413,16.5,17.181,17.165,17.0]
[1673643048250,59.44309625,17.188,17.165,17.0]
[1673643048478,115.7144,17.189,17.171,20.0]
[1673643048669,115.7144,17.189,17.172,114.0989]
[1673643049815,29.9691928,17.193,17.172,114.0989]
[1673643050033,140.0565,17.199,17.173,19.96777448]
[1673643050243,150.0256928,17.199,17.174,20.0]
[1673643050453,145.6835928,17.199,17.18,46.37]
[1673643050663,115.7144,17.199,17.181,17.0]
[1673643051288,115.7144,17.199,17.181,129.5354]
[1673643051840,145.6835928,17.199,17.181,129.5354]
[1673643052025,115.7144,17.199,17.181,129.5354]
[1673643052238,20.0,17.198,17.181,129.5354]
[1673643053184,20.0,17.198,17.182,20.0]
[1673643053934,20.0,17.198,17.183,17.0]
[1673643055401,20.0,17.198,17.184,20.0]
[1673643055595,20.0,17.198,17.182,20.0]
[1673643055806,20.0,17.198,17.183,17.0]
[1673643056026,20.0,17.198,17.181,112.5354]
[1673643056243,29.9691928,17.197,17.181,112.5354]
[1673643057080,29.9691928,17.197,17.174,110.6522]
[1673643057281,20.0,17.195,17.174,110.6522]
[1673643057495,20.0,17.194,17.174,110.6522]
[1673643057907,49.9691928,17.194,17.174,110.6522]
[1673643058775,20.0,17.193,17.17,30.78]
[1673643058968,20.0,17.192,17.17,30.78]
[1673643059173,110.5147,17.191,17.17,30.78]
[1673643059385,20.0,17.19,17.17,30.78]
[1673643059595,20.0,17.19,17.173,20.0]
[1673643060743,20.0,17.19,17.174,17.0]
[1673643062321,20.0,17.19,17.174,36.96777448]
[1673643062742,20.0,17.198,17.175,20.0]
[1673643062952,136.9876,17.199,17.175,20.0]
[1673643063189,20.0,17.198,17.175,19.96777448]
[1673643063379,20.0,17.198,17.176,17.0]
[1673643063380,49.9691928,17.198,17.176,17.0]
[1673643063587,20.0,17.196,17.176,17.0]
[1673643063907,40.0,17.196,17.176,17.0]
[1673643064112,20.0,17.195,17.176,17.0]
[1673643064450,20.0,17.198,17.176,17.0]
[1673643064664,20.0,17.198,17.173,19.96777448]
[1673643064965,20.0,17.198,17.172,233.4756]
[1673643064966,29.9691928,17.195,17.172,233.4756]
[1673643065159,20.0,17.193,17.172,233.4756]
[1673643065371,112.378,17.192,17.172,233.4756]
[1673643065581,20.0,17.191,17.172,233.4756]
[1673643066013,20.0,17.191,17.173,19.96777448]
[1673643066335,20.0,17.191,17.174,20.0]
[1673643066753,20.0,17.191,17.175,19.96777448]
[1673643067888,20.0,17.204,17.177,20.0]
[1673643068112,114.9451,17.199,17.178,20.0]
[1673643068342,114.9451,17.199,17.179,20.0]
[1673643068529,114.9451,17.199,17.179,39.96777448]
[1673643068736,114.9451,17.199,17.18,19.96777448]
[1673643069154,20.0,17.205,17.18,19.96777448]
[1673643069155,20.0,17.198,17.181,20.0]
[1673643069366,114.9451,17.205,17.181,134.9136]
[1673643069601,20.0,17.204,17.182,19.96777448]
[1673643070117,20.0,17.204,17.183,20.0]
[1673643070659,30.78,17.2,17.183,19.96777448]
[1673643070974,30.78,17.2,17.173,20.0]
[1673643071274,49.9691928,17.199,17.174,20.0]
[1673643071602,29.9691928,17.198,17.174,20.0]
[1673643071778,29.9691928,17.198,17.18,30.78]
[1673643071994,20.0,17.199,17.18,30.78]
[1673643072304,29.9691928,17.203,17.181,20.0]
[1673643072519,114.9451,17.205,17.182,20.0]
[1673643072950,114.9451,17.205,17.182,39.96777448]
[1673643073158,46.87268288,17.212,17.19,30.61]
[1673643073375,118.9386,17.211,17.19,30.61]
[1673643073569,29.9691928,17.21,17.19,30.61]
[1673643073897,29.9691928,17.21,17.19,149.4052]
[1673643074095,20.0,17.209,17.191,20.0]
[1673643074304,29.9691928,17.21,17.191,20.0]
[1673643074522,29.9691928,17.209,17.192,17.0]
[1673643075050,49.9691928,17.209,17.183,20.0]
[1673643075257,96.79573731,17.209,17.184,20.0]
[1673643075671,40.0,17.208,17.184,20.0]
[1673643076087,20.0,17.207,17.181,627.6512]
[1673643076319,30.61,17.2,17.181,511.0952]
[1673643076528,137.9661,17.199,17.181,511.0952]
[1673643076733,167.9352928,17.199,17.181,511.0952]
[1673643077150,29.9691928,17.198,17.181,511.0952]
[1673643077877,137.9661,17.199,17.181,511.0952]
[1673643078323,167.9352928,17.199,17.181,511.0952]
[1673643079558,167.9352928,17.199,17.181,118.7952]
[1673643079990,167.9352928,17.199,17.182,17.0]
[1673643081030,137.9661,17.199,17.183,20.0]
[1673643082087,137.9661,17.199,17.182,20.0]
[1673643082818,137.9661,17.199,17.183,17.0]
[1673643085657,20.0,17.199,17.183,17.0]
[1673643085878,30.78,17.21,17.183,17.0]
[1673643085879,116.1587,17.205,17.183,17.0]
[1673643086195,29.9691928,17.214,17.19,30.78]
[1673643086404,20.0,17.213,17.191,17.0]
[1673643086816,29.9691928,17.212,17.191,17.0]
[1673643087024,20.0,17.211,17.191,17.0]
[1673643087230,30.61,17.21,17.191,17.0]
[1673643087434,20.0,17.209,17.184,117.411]
[1673643087661,37.0,17.208,17.184,117.411]
[1673643087867,20.0,17.207,17.184,117.411]
[1673643088071,20.0,17.206,17.184,117.411]
[1673643088287,20.0,17.204,17.184,117.411]
[1673643088505,20.0,17.203,17.184,117.411]
[1673643088719,20.0,17.203,17.181,118.7952]
[1673643088949,30.66,17.2,17.181,118.7952]
[1673643089146,30.66,17.2,17.174,111.4735]
[1673643089147,40.0,17.199,17.174,111.4735]
[1673643089355,116.79573731,17.199,17.174,111.4735]
[1673643089567,76.79573731,17.198,17.174,111.4735]
[1673643089883,20.0,17.196,17.174,111.4735]
[1673643090097,20.0,17.195,17.17,30.78]
[1673643090425,96.79573731,17.195,17.17,30.78]
[1673643090636,29.9691928,17.194,17.17,30.78]
[1673643090830,20.0,17.193,17.17,30.78]
[1673643091260,29.9691928,17.192,17.17,30.78]
[1673643091467,20.0,17.191,17.173,17.0]
[1673643092398,20.0,17.191,17.17,30.78]
[1673643093771,20.0,17.191,17.173,17.0]
[1673643094501,20.0,17.191,17.174,20.0]
[1673643094715,49.9691928,17.195,17.175,17.0]
[1673643095995,20.0,17.195,17.175,17.0]
[1673643096184,29.9691928,17.194,17.17,70.64747444]
[1673643096396,20.0,17.193,17.17,50.71373722]
[1673643096717,29.9691928,17.192,17.17,30.78]
[1673643096926,20.0,17.191,17.17,30.78]
[1673643097337,49.9691928,17.191,17.17,30.78]
[1673643097991,49.9691928,17.191,17.173,37.0]
[1673643098308,20.0,17.191,17.173,37.0]
[1673643098707,20.0,17.193,17.173,17.0]
[1673643098918,20.0,17.192,17.17,30.78]
[1673643099245,60.7491928,17.19,17.17,30.78]
[1673643099448,136.5328,17.189,17.17,30.78]
[1673643099675,166.5019928,17.189,17.17,30.78]
[1673643100925,166.5019928,17.189,17.173,17.0]
[1673643101138,20.0,17.188,17.173,17.0]
[1673643101563,136.5328,17.189,17.173,17.0]
[1673643102801,136.5328,17.189,17.174,20.0]
[1673643103227,136.5328,17.189,17.175,17.0]
[1673643103885,136.5328,17.189,17.174,17.0]
[1673643104279,136.5328,17.189,17.17,30.78]
[1673643104701,20.0,17.188,17.17,30.78]
[1673643105989,20.0,17.188,17.173,17.0]
[1673643106385,166.5019928,17.189,17.173,17.0]
[1673643107132,136.5328,17.189,17.173,17.0]
[1673643109021,136.5328,17.189,17.173,16.5]
[1673643109436,20.0,17.188,17.173,16.5]
[1673643109757,136.5328,17.189,17.173,16.5]
[1673643111838,136.5328,17.189,17.17,30.78]
[1673643112065,166.5019928,17.189,17.17,30.78]
[1673643112279,20.0,17.188,17.17,30.78]
[1673643113212,20.0,17.188,17.173,17.0]
[1673643117330,156.5328,17.189,17.173,17.0]
[1673643117735,136.5328,17.189,17.173,17.0]
[1673643119531,20.0,17.188,17.173,17.0]
[1673643121193,156.5328,17.189,17.173,17.0]
[1673643121194,136.5328,17.189,17.173,17.0]
[1673643122681,20.0,17.189,17.173,17.0]
[1673643122892,20.0,17.198,17.174,20.36148282]
[1673643123113,138.6545,17.198,17.174,20.36148282]
[1673643123327,138.6545,17.198,17.175,17.0]
[1673643123534,138.6545,17.198,17.176,20.0]
[1673643123755,138.6545,17.198,17.177,37.0]
[1673643124279,20.0,17.197,17.177,37.0]
[1673643124806,138.6545,17.198,17.178,20.0]
[1673643124988,138.6545,17.198,17.179,20.0]
[1673643125204,118.6545,17.198,17.18,46.22]
[1673643125530,118.6545,17.198,17.181,130.4718]
[1673643125939,29.9691928,17.197,17.181,17.0]
[1673643126367,49.9691928,17.197,17.181,17.0]
[1673643126565,20.0,17.196,17.176,114.6869]
[1673643126989,49.9691928,17.196,17.176,114.6869]
[1673643127535,20.0,17.195,17.176,114.6869]
[1673643127744,20.0,17.194,17.176,114.6869]
[1673643128378,20.0,17.194,17.177,17.0]
[1673643128777,20.0,17.194,17.176,114.6869]
[1673643128987,49.9691928,17.194,17.176,114.6869]
[1673643129207,20.0,17.194,17.176,114.6869]
[1673643129632,49.9691928,17.194,17.176,114.6869]
[1673643129929,49.9691928,17.194,17.172,114.0989]
[1673643130141,6.72737,17.193,17.173,17.0]
[1673643130585,49.9691928,17.192,17.173,17.0]
[1673643130985,29.9691928,17.191,17.173,17.0]
[1673643131212,134.9717,17.19,17.173,17.0]
[1673643131531,20.0,17.189,17.173,17.0]
[1673643131717,20.0,17.188,17.173,17.0]
[1673643135426,20.0,17.187,17.173,17.0]
[1673643136678,20.0,17.188,17.173,17.0]
[1673643137090,20.0,17.189,17.173,17.0]
[1673643138349,20.0,17.188,17.173,17.0]
[1673643139196,20.0,17.189,17.173,17.0]
[1673643139414,40.0,17.189,17.173,17.0]
[1673643139819,29.9691928,17.188,17.172,114.0989]
[1673643140030,20.0,17.187,17.172,114.0989]
[1673643140464,20.0,17.187,17.168,119.9666]
[1673643140465,29.9691928,17.186,17.168,119.9666]
[1673643140791,66.82654451,17.185,17.168,119.9666]
[1673643140994,66.82654451,17.185,17.16,46.42]
[1673643141315,49.9691928,17.184,17.161,113.7572]
[1673643141508,20.0,17.183,17.161,113.7572]
[1673643141725,20.0,17.182,17.164,17.0]
[1673643141927,20.0,17.181,17.164,17.0]
[1673643142569,20.0,17.181,17.165,20.0]
[1673643142768,193.86998068,17.199,17.17,45.82]
[1673643142973,110.6925,17.192,17.17,45.82]
[1673643143187,110.6925,17.192,17.171,17.0]
[1673643143403,20.0,17.191,17.171,17.0]
[1673643143630,49.9691928,17.191,17.171,17.0]
[1673643143936,45.99,17.19,17.172,111.8294]
[1673643144153,20.0,17.189,17.172,111.8294]
[1673643144349,20.0,17.188,17.172,111.8294]
[1673643145090,20.0,17.188,17.17,45.82]
[1673643145317,49.9691928,17.188,17.171,17.0]
[1673643145524,49.9691928,17.188,17.168,113.5085]
[1673643145952,95.88854235,17.188,17.168,113.5085]
[1673643146347,20.0,17.186,17.168,113.5085]
[1673643146573,20.0,17.185,17.168,113.5085]
[1673643146785,49.9691928,17.185,17.168,113.5085]
[1673643147003,29.9691928,17.184,17.168,113.5085]
[1673643147315,29.9691928,17.184,17.145,111.3395]
[1673643147316,20.0,17.178,17.145,111.3395]
[1673643147622,4.74147156,17.169,17.145,111.3395]
[1673643147841,4.74147156,17.167,17.145,111.3395]
[1673643148033,24.74147156,17.167,17.145,111.3395]
[1673643148242,49.9691928,17.166,17.145,111.3395]
[1673643148448,4.74147156,17.164,17.145,111.3395]
[1673643148889,29.9691928,17.163,17.145,111.3395]
[1673643149104,4.74147156,17.161,17.145,111.3395]
[1673643149417,34.71066436,17.161,17.145,111.3395]
[1673643149631,20.0,17.16,17.145,111.3395]
[1673643149832,4.74147156,17.159,17.146,17.0]
[1673643150577,4.74147156,17.159,17.14,46.2]
[1673643150578,95.60666236,17.159,17.13,46.2]
[1673643150769,20.0,17.158,17.138,20.0]
[1673643150979,4.74147156,17.157,17.139,20.0]
[1673643151307,4.74147156,17.157,17.14,20.0]
[1673643151525,4.74147156,17.158,17.14,20.0]
[1673643151714,4.74147156,17.158,17.139,20.0]
[1673643151924,34.71066436,17.158,17.134,109.6287]
[1673643152146,20.0,17.157,17.134,109.6287]
[1673643152359,24.74147156,17.156,17.134,109.6287]
[1673643152555,20.0,17.155,17.134,109.6287]
[1673643152761,4.74147156,17.154,17.134,109.6287]
[1673643152979,34.71066436,17.154,17.134,109.6287]
[1673643153197,20.0,17.153,17.134,109.6287]
[1673643153517,4.74147156,17.152,17.134,109.6287]
[1673643153914,4.74147156,17.152,17.137,17.0]
[1673643154125,4.74147156,17.15,17.137,17.0]
[1673643154351,24.74147156,17.15,17.137,17.0]
[1673643154540,4.74147156,17.15,17.137,17.0]
[1673643158142,4.74147156,17.15,17.138,20.0]
[1673643158467,4.74147156,17.15,17.139,17.0]
[1673643159717,4.74147156,17.156,17.14,46.34]
[1673643160039,4.74147156,17.157,17.141,17.0]
[1673643160239,4.74147156,17.157,17.142,20.0]
[1673643160571,4.74147156,17.157,17.143,17.0]
[1673643161293,4.74147156,17.157,17.14,46.38]
[1673643163488,24.74147156,17.157,17.14,46.38]
[1673643163902,24.74147156,17.157,17.136,97.38966877]
[1673643164122,20.0,17.155,17.136,97.38966877]
[1673643164430,34.71066436,17.154,17.136,97.38966877]
[1673643164638,4.74147156,17.152,17.136,97.38966877]
[1673643165799,4.74147156,17.152,17.137,20.0]
[1673643166017,20.0,17.155,17.136,97.38966877]
[1673643166221,24.74147156,17.154,17.136,97.38966877]
[1673643167168,4.74147156,17.152,17.136,97.38966877]
[1673643168345,4.74147156,17.153,17.136,97.38966877]
[1673643168742,34.71066436,17.153,17.136,97.38966877]
[1673643168951,4.74147156,17.151,17.136,97.38966877]
[1673643169159,4.74147156,17.151,17.137,17.0]
[1673643172104,4.74147156,17.151,17.138,20.0]
[1673643172325,4.74147156,17.157,17.14,46.1]
[1673643172654,4.74147156,17.157,17.141,20.0]
[1673643172845,4.74147156,17.157,17.142,17.0]
[1673643173049,4.74147156,17.157,17.143,20.0]
[1673643173501,29.9691928,17.162,17.144,17.0]
[1673643174419,1.93609087,17.157,17.144,17.0]
[1673643174750,29.9691928,17.162,17.144,17.0]
[1673643175281,1.95283308,17.157,17.144,17.0]
[1673643176422,31.92202588,17.157,17.144,17.0]
[1673643176624,20.0,17.156,17.144,17.0]
[1673643176845,2.4761774,17.155,17.144,17.0]
[1673643178011,2.4761774,17.155,17.13,66.34]
[1673643178012,29.9691928,17.154,17.13,66.34]
[1673643178221,2.4761774,17.152,17.133,112.8216]
[1673643179066,2.4761774,17.152,17.134,20.0]
[1673643179388,2.4761774,17.152,17.137,17.0]
[1673643180623,2.4761774,17.152,17.133,112.8216]
[1673643180832,52.4453702,17.152,17.133,112.8216]